bitfinex/quotes_BTCUSD_20251021
["timestamp","ask_amount","ask_price","bid_price","bid_amount"]
[1761010629334,0.18115942,110400.0,110390.0,0.00034254]
[1761010630479,3.18115942,110400.0,110390.0,0.00034254]
[1761010630684,3.18273821,110400.0,110390.0,0.00034254]
[1761010635861,3.18273821,110400.0,110390.0,0.18151837]
[1761010640951,0.18273821,110400.0,110390.0,0.18151837]
[1761010644671,0.18273821,110400.0,110390.0,0.00034254]
[1761010647007,3.18273821,110400.0,110390.0,0.00034254]
[1761010657646,3.20336022,110400.0,110390.0,0.00034254]
[1761010659209,0.34,110390.0,110380.0,0.17852812]
[1761010659630,0.34,110390.0,110380.0,0.17959434]
[1761010661758,0.34,110390.0,110380.0,0.19771356]
[1761010681991,0.52117583,110390.0,110380.0,0.02418544]
[1761010682137,0.52117583,110390.0,110380.0,0.18725846]
[1761010682343,0.34,110390.0,110380.0,0.18725846]
[1761010682552,0.52117583,110390.0,110380.0,0.18725846]
[1761010685453,0.52117583,110390.0,110380.0,0.00606622]
[1761010685655,0.52117583,110390.0,110380.0,0.18725846]
[1761010687113,0.52117583,110390.0,110380.0,0.00606622]
[1761010687527,3.59156756,110390.0,110380.0,0.01457024]
[1761010689593,3.59156756,110390.0,110380.0,0.00606622]
[1761010689766,3.61409039,110390.0,110380.0,0.00606622]
[1761010690156,3.64134402,110390.0,110380.0,0.00606622]
[1761010690362,3.6775263,110390.0,110380.0,0.00606622]
[1761010690595,3.65500347,110390.0,110380.0,0.00606622]
[1761010691075,0.18119224,110380.0,110370.0,0.17547348]
[1761010691227,3.52119224,110380.0,110370.0,0.17547348]
[1761010691893,0.34,110380.0,110370.0,0.17547348]
[1761010692103,0.34,110380.0,110370.0,0.18396359]
[1761010692862,0.18117583,110390.0,110370.0,0.18396359]
[1761010693093,3.0,110380.0,110370.0,0.18396233]
[1761010693292,0.18117583,110390.0,110380.0,0.18119224]
[1761010693465,0.18117583,110390.0,110370.0,0.17547348]
[1761010694274,3.0,110390.0,110380.0,0.18119224]
[1761010695402,0.19022068,110400.0,110380.0,0.18119224]
[1761010695650,0.53022068,110400.0,110390.0,0.18117583]
[1761010696456,0.52115942,110400.0,110390.0,0.18117583]
[1761010696609,0.52222559,110400.0,110390.0,0.18117583]
[1761010698259,0.52222559,110400.0,110390.0,0.11417583]
[1761010698430,0.52222559,110400.0,110380.0,0.18119224]
[1761010698665,0.52115942,110400.0,110380.0,0.18119224]
[1761010699701,0.34,110390.0,110380.0,0.18119224]
[1761010699886,0.18115942,110400.0,110380.0,0.18119224]
[1761010700115,0.52115942,110400.0,110380.0,0.18119224]
[1761010703809,0.52115942,110400.0,110390.0,0.18117583]
[1761010705243,0.34,110400.0,110390.0,0.18117583]
[1761010705435,0.02903249,110410.0,110400.0,0.18115942]
[1761010705892,0.2101755,110410.0,110400.0,0.18115942]
[1761010706091,0.2101755,110410.0,110390.0,0.23593583]
[1761010708246,0.2101755,110410.0,110400.0,0.18115942]
[1761010710297,0.02903249,110410.0,110400.0,0.18115942]
[1761010711137,0.02745363,110410.0,110400.0,0.18115942]
[1761010711343,0.52612941,110420.0,110410.0,0.18114301]
[1761010711344,0.005,110420.0,110410.0,0.18114301]
[1761010711550,0.005,110420.0,110410.0,0.18163526]
[1761010711757,0.005,110420.0,110410.0,0.29539526]
[1761010711935,0.00675093,110420.0,110410.0,0.29539526]
[1761010712977,0.04381388,110420.0,110410.0,0.32263132]
[1761010713211,0.00675093,110420.0,110410.0,0.32263132]
[1761010713635,0.00675093,110420.0,110410.0,0.32363132]
[1761010713784,0.04393181,110420.0,110410.0,0.32363132]
[1761010713992,0.00675093,110420.0,110410.0,0.32363132]
[1761010716222,0.18787753,110420.0,110410.0,0.32363132]
[1761010716425,0.18787753,110420.0,110410.0,0.14248831]
[1761010716675,0.18787753,110420.0,110410.0,0.20987132]
[1761010716881,0.18787753,110420.0,110410.0,0.29639526]
[1761010717372,0.18787753,110420.0,110410.0,0.00149225]
[1761010717576,0.18787753,110420.0,110410.0,0.18263526]
[1761010717991,0.22562225,110420.0,110410.0,0.18263526]
[1761010718225,0.04449565,110420.0,110410.0,0.18263526]
[1761010719048,0.04449565,110420.0,110410.0,0.18163526]
[1761010719263,0.22562225,110420.0,110410.0,0.18163526]
[1761010721336,0.04449565,110420.0,110410.0,0.18163526]
[1761010723343,0.21834901,110420.0,110410.0,0.18163526]
[1761010723698,0.1811266,110420.0,110410.0,0.18163526]
[1761010724035,0.18111193,110430.0,110410.0,0.18163526]
[1761010724735,0.1811266,110420.0,110410.0,0.18163247]
[1761010725840,0.1811266,110420.0,110410.0,0.18163526]
[1761010726995,0.21786266,110430.0,110410.0,0.18163526]
[1761010733314,0.1811266,110420.0,110410.0,0.18163526]
[1761010733520,0.21786266,110430.0,110410.0,0.18163526]
[1761010734101,0.21786266,110430.0,110410.0,0.29535526]
[1761010735166,0.1811266,110420.0,110410.0,0.29535526]
[1761010735372,0.1811266,110420.0,110410.0,0.18163526]
[1761010735959,0.1811266,110420.0,110410.0,0.11421225]
[1761010736393,0.1811266,110420.0,110410.0,0.29535526]
[1761010736595,0.1811266,110420.0,110410.0,0.18163526]
[1761010737622,0.03675073,110430.0,110420.0,0.1811266]
[1761010737836,0.03675073,110430.0,110420.0,0.2948466]
[1761010738055,0.00157854,110440.0,110430.0,0.1811102]
[1761010738501,0.03903733,110440.0,110430.0,0.1811102]
[1761010739338,0.22013113,110440.0,110430.0,0.1811102]
[1761010742490,0.22013113,110440.0,110430.0,0.1511102]
[1761010742692,0.22013113,110440.0,110430.0,0.16922122]
[1761010742852,0.03903733,110440.0,110430.0,0.16922122]
[1761010743479,0.039722,110440.0,110430.0,0.16922122]
[1761010743903,0.2208158,110440.0,110430.0,0.16922122]
[1761010749535,0.2208158,110440.0,110430.0,0.13822122]
[1761010749777,0.2208158,110440.0,110420.0,0.2948466]
[1761010749988,0.22013113,110440.0,110420.0,0.2948466]
[1761010751120,0.22013113,110440.0,110430.0,0.01811102]
[1761010751320,0.22013113,110440.0,110430.0,0.19922122]
[1761010751521,0.22013113,110440.0,110430.0,0.1811102]
[1761010753870,0.1811102,110430.0,110420.0,0.2948466]
[1761010754276,0.22013113,110440.0,110420.0,0.2948466]
[1761010755323,0.00034237,110430.0,110420.0,0.2948466]
[1761010755730,0.1811266,110420.0,110410.0,0.00121574]
[1761010756503,0.18270515,110420.0,110410.0,0.00121574]
[1761010756936,0.1811266,110420.0,110410.0,0.00121574]
[1761010758013,0.1811266,110420.0,110410.0,0.18235875]
[1761010758440,0.1811266,110420.0,110410.0,0.00121574]
[1761010758611,0.1811266,110420.0,110410.0,0.18235875]
[1761010761254,3.0,110420.0,110410.0,0.18235875]
[1761010763236,3.1811266,110420.0,110410.0,0.18235875]
[1761010763441,0.1811266,110420.0,110410.0,0.18235875]
[1761010766144,3.1811266,110420.0,110410.0,0.18235875]
[1761010766314,0.1811266,110420.0,110410.0,0.18235875]
[1761010766569,3.0,110420.0,110410.0,0.18235875]
[1761010768019,0.00192093,110430.0,110420.0,0.1811266]
[1761010768229,3.5211266,110420.0,110410.0,0.00121574]
[1761010768451,3.65627581,110420.0,110410.0,0.00121574]
[1761010768861,3.63346844,110420.0,110410.0,0.00121574]
[1761010769688,3.61094561,110420.0,110410.0,0.00121574]
[1761010770786,3.61194561,110420.0,110410.0,0.00121574]
[1761010771406,3.61352445,110420.0,110410.0,0.00121574]
[1761010771605,3.61452445,110420.0,110410.0,0.00121574]
[1761010776824,3.65070673,110420.0,110410.0,0.00121574]
[1761010777074,3.67795341,110420.0,110410.0,0.00121574]
[1761010781616,3.67795341,110420.0,110370.0,0.19031355]
[1761010781617,0.18120866,110370.0,110360.0,0.18122019]
[1761010781976,0.18170052,110370.0,110360.0,0.1896858]
[1761010782299,0.00049186,110370.0,110360.0,0.1896858]
[1761010782523,0.03764803,110370.0,110360.0,0.1896858]
[1761010783174,0.03764803,110370.0,110360.0,0.1906858]
[1761010783501,0.03764803,110370.0,110360.0,0.1916858]
[1761010784188,0.42853057,110370.0,110360.0,0.1916858]
[1761010785383,0.60973923,110370.0,110360.0,0.01046561]
[1761010785579,1.00062177,110370.0,110360.0,0.01046561]
[1761010786084,0.60973923,110370.0,110360.0,0.19169069]
[1761010786482,1.00062177,110370.0,110360.0,0.002]
[1761010787314,1.00062177,110370.0,110360.0,0.00371308]
[1761010788088,1.00062177,110370.0,110360.0,0.00271308]
[1761010788284,1.09044078,110370.0,110360.0,0.00271308]
[1761010788988,0.21885669,110370.0,110360.0,0.00271308]
[1761010789152,1.00062177,110370.0,110360.0,0.00171308]
[1761010789350,1.0022009,110370.0,110360.0,0.00171308]
[1761010789928,0.61131836,110370.0,110360.0,0.20106066]
[1761010790140,0.61131836,110370.0,110360.0,0.00171308]
[1761010790409,0.61131836,110370.0,110360.0,0.01983558]
[1761010791235,0.61131836,110370.0,110360.0,0.00171308]
[1761010791616,1.0022009,110370.0,110360.0,0.00171308]
[1761010791841,1.0022009,110370.0,110360.0,0.01983558]
[1761010791998,1.0022009,110370.0,110360.0,0.00171308]
[1761010792384,1.0022009,110370.0,110360.0,0.01983558]
[1761010792826,0.61131836,110370.0,110360.0,0.01983558]
[1761010794655,0.61131836,110370.0,110360.0,0.20952802]
[1761010794836,0.61131836,110370.0,110360.0,0.19140552]
[1761010795042,0.61131836,110370.0,110360.0,0.18293816]
[1761010795276,0.61079536,110370.0,110360.0,0.19140794]
[1761010796657,0.61079536,110370.0,110360.0,0.01018286]
[1761010796859,0.61079536,110370.0,110360.0,0.01983558]
[1761010798530,0.61079536,110370.0,110360.0,0.20106066]
[1761010798721,0.61079536,110370.0,110360.0,0.18293816]
[1761010801993,0.4295867,110370.0,110360.0,0.18293816]
[1761010802152,0.61079536,110370.0,110360.0,0.18293816]
[1761010802356,0.61079536,110370.0,110360.0,0.00171308]
[1761010802559,0.61079536,110370.0,110360.0,0.01983558]
[1761010803404,0.61079536,110370.0,110360.0,0.20106066]
[1761010804390,0.4295867,110370.0,110360.0,0.18293816]
[1761010804761,0.61079536,110370.0,110360.0,0.18293816]
[1761010807867,0.61079536,110370.0,110360.0,0.00171308]
[1761010808282,1.0016779,110370.0,110360.0,0.00171308]
[1761010808488,0.21991282,110370.0,110360.0,0.00171308]
[1761010808687,0.61079536,110370.0,110360.0,0.01983558]
[1761010808890,0.61079536,110370.0,110360.0,0.00171308]
[1761010810080,0.61079536,110370.0,110360.0,0.01983558]
[1761010810871,0.61079536,110370.0,110360.0,0.00171308]
[1761010811696,1.0016779,110370.0,110360.0,0.00171308]
[1761010812100,1.0016779,110370.0,110360.0,0.01983558]
[1761010812345,1.0016779,110370.0,110360.0,0.00171308]
[1761010813698,1.0016779,110370.0,110360.0,0.01983558]
[1761010813900,0.61079536,110370.0,110360.0,0.01983558]
[1761010815810,0.61079536,110370.0,110360.0,0.20106066]
[1761010816012,0.61079536,110370.0,110360.0,0.18293816]
[1761010818448,0.61079536,110370.0,110360.0,0.00171308]
[1761010818652,0.61079536,110370.0,110360.0,0.01983558]
[1761010818793,1.0016779,110370.0,110360.0,0.01983558]
[1761010819013,0.61079536,110370.0,110360.0,0.01983558]
[1761010826759,0.61079536,110370.0,110360.0,0.20106066]
[1761010826960,0.61079536,110370.0,110360.0,0.18293816]
[1761010827327,0.03870416,110370.0,110360.0,0.18293816]
[1761010827520,0.03712503,110370.0,110360.0,0.38655717]
[1761010827772,0.18117691,110390.0,110370.0,0.18120866]
[1761010827773,0.57207482,110380.0,110370.0,0.18120866]
[1761010827978,0.57207482,110380.0,110370.0,0.18129765]
[1761010828473,0.57207482,110380.0,110370.0,8.899e-05]
[1761010828887,0.96291954,110380.0,110370.0,8.899e-05]
[1761010829095,1.00068439,110380.0,110370.0,0.01820985]
[1761010829464,1.00068439,110380.0,110370.0,0.19941851]
[1761010829669,1.00068439,110380.0,110370.0,0.18129765]
[1761010830765,1.00068439,110380.0,110370.0,8.899e-05]
[1761010830968,1.00068439,110380.0,110370.0,0.01820985]
[1761010832475,0.9739818,110380.0,110370.0,0.01820985]
[1761010833441,0.9739818,110380.0,110370.0,0.01958019]
[1761010833602,0.9739818,110380.0,110370.0,0.20078885]
[1761010833800,0.9739818,110380.0,110370.0,0.00145933]
[1761010833991,0.9739818,110380.0,110370.0,0.01958019]
[1761010834231,0.9739818,110380.0,110370.0,0.20078885]
[1761010834618,0.9739818,110380.0,110370.0,0.01958019]
[1761010836736,0.9739818,110380.0,110370.0,0.20078885]
[1761010836894,0.9739818,110380.0,110370.0,0.18266799]
[1761010838774,0.9739818,110380.0,110370.0,0.00145933]
[1761010838935,0.9739818,110380.0,110370.0,0.01958019]
[1761010841143,0.9739818,110380.0,110370.0,0.20078885]
[1761010841451,0.9739818,110380.0,110370.0,0.18266799]
[1761010841901,1.00068439,110380.0,110370.0,0.18266799]
[1761010842497,1.00068439,110380.0,110370.0,0.00145933]
[1761010842703,1.00068439,110380.0,110370.0,0.01958019]
[1761010844687,1.00064993,110380.0,110370.0,0.01958019]
[1761010845787,1.00064993,110380.0,110370.0,0.20078885]
[1761010845987,1.00064993,110380.0,110370.0,0.18266799]
[1761010850428,0.03776485,110380.0,110370.0,0.18266799]
[1761010850642,0.3908464,110380.0,110370.0,0.18266799]
[1761010852181,0.3908464,110380.0,110370.0,0.18366799]
[1761010852330,0.42794357,110380.0,110370.0,0.18366799]
[1761010852531,0.81878997,110380.0,110370.0,0.18366799]
[1761010852778,0.42794357,110380.0,110370.0,0.18366799]
[1761010853206,0.42794357,110380.0,110370.0,0.273487]
[1761010854250,0.81878997,110380.0,110370.0,0.30073222]
[1761010857098,0.42794357,110380.0,110370.0,0.30073222]
[1761010860873,0.39242545,110390.0,110370.0,0.30073222]
[1761010861072,1.37622391,110380.0,110370.0,0.00108899]
[1761010861302,1.40347561,110380.0,110370.0,0.00108899]
[1761010861654,0.23093641,110380.0,110370.0,0.00108899]
[1761010861917,1.40347561,110380.0,110370.0,0.00108899]
[1761010862088,1.74347561,110380.0,110370.0,8.899e-05]
[1761010862277,1.78564381,110380.0,110370.0,8.899e-05]
[1761010863890,1.78564381,110380.0,110350.0,0.50937205]
[1761010863891,0.18122508,110360.0,110350.0,0.49646104]
[1761010864090,0.96291788,110360.0,110350.0,0.4969529]
[1761010864890,0.96291788,110360.0,110350.0,0.4979529]
[1761010865327,0.96291788,110360.0,110350.0,0.4969529]
[1761010865639,0.96291788,110360.0,110350.0,0.4989529]
[1761010866044,0.96291788,110360.0,110350.0,0.4979529]
[1761010866818,0.18122156,110370.0,110350.0,0.4979529]
[1761010867039,0.7816928,110360.0,110350.0,0.4979529]
[1761010867422,0.7816928,110360.0,110350.0,0.50000878]
[1761010868611,0.3908464,110360.0,110350.0,0.50000878]
[1761010868795,0.18120866,110370.0,110360.0,0.18121279]
[1761010869987,0.57205506,110370.0,110360.0,0.18121279]
[1761010874153,0.57205506,110370.0,110360.0,0.18292587]
[1761010875767,4.35374786,110370.0,110360.0,0.00171308]
[1761010875988,4.82882443,110370.0,110360.0,0.00171308]
[1761010876191,4.85607928,110370.0,110360.0,0.00171308]
[1761010876366,4.81082172,110370.0,110360.0,0.00171308]
[1761010876947,0.18122508,110360.0,110350.0,0.12652272]
[1761010877208,1.35376428,110360.0,110350.0,0.12652272]
[1761010878280,1.38102088,110360.0,110350.0,0.12752272]
[1761010879801,1.43316106,110360.0,110350.0,0.12752272]
[1761010880794,1.4347404,110360.0,110350.0,0.12752272]
[1761010881224,1.4345224,110360.0,110350.0,0.12752272]
[1761010881545,1.45697259,110360.0,110350.0,0.12652272]
[1761010882384,1.45697259,110360.0,110350.0,0.12686544]
[1761010883193,1.4345224,110360.0,110350.0,0.12686544]
[1761010883981,1.4345224,110360.0,110350.0,0.11486544]
[1761010884604,1.38238222,110360.0,110350.0,0.11486544]
[1761010890855,0.99211566,110360.0,110350.0,0.11486544]
[1761010891066,0.99211566,110360.0,110350.0,0.10386544]
[1761010891466,0.80393556,110360.0,110350.0,0.10386544]
[1761010892327,0.98516064,110360.0,110350.0,0.10386544]
[1761010895133,0.59402432,110360.0,110350.0,0.10386544]
[1761010895951,0.59402432,110360.0,110350.0,0.28510694]
[1761010896151,0.57394074,110360.0,110350.0,0.10386544]
[1761010898269,0.57394074,110360.0,110350.0,0.08386544]
[1761010902174,0.57394074,110360.0,110350.0,0.26510694]
[1761010902175,0.39271566,110360.0,110350.0,0.26510694]
[1761010902348,0.73271566,110360.0,110350.0,0.26510694]
[1761010903099,0.91394074,110360.0,110350.0,0.26510694]
[1761010903500,0.91394074,110360.0,110350.0,0.37902694]
[1761010903707,0.91394074,110360.0,110350.0,0.26510694]
[1761010903900,0.91394074,110360.0,110350.0,0.37898694]
[1761010904655,0.91394074,110360.0,110350.0,0.26510694]
[1761010905003,0.91394074,110360.0,110350.0,0.37898694]
[1761010905203,0.91394074,110360.0,110350.0,0.32498694]
[1761010907151,0.73271566,110360.0,110350.0,0.32498694]
[1761010908792,0.39271566,110360.0,110350.0,0.32498694]
[1761010909416,0.00157934,110360.0,110350.0,0.32498694]
[1761010909614,0.57307126,110370.0,110350.0,0.32498694]
[1761010912058,0.39113632,110360.0,110350.0,0.32498694]
[1761010912439,0.39113632,110360.0,110350.0,0.25798694]
[1761010918848,0.73343943,110370.0,110360.0,0.18122508]
[1761010919047,0.52351177,110370.0,110350.0,0.25798694]
[1761010919268,0.39113632,110360.0,110350.0,0.25798694]
[1761010919437,0.39113632,110360.0,110350.0,0.18998694]
[1761010923825,0.34230311,110370.0,110360.0,0.18122508]
[1761010924154,0.52351177,110370.0,110360.0,0.18122508]
[1761010924479,0.91464809,110370.0,110360.0,0.18122508]
[1761010926523,0.91464809,110370.0,110360.0,0.12922508]
[1761010926727,0.91464809,110370.0,110360.0,0.14734758]
[1761010930955,0.00230311,110370.0,110360.0,0.14734758]
[1761010931756,0.00072387,110370.0,110360.0,0.14734758]
[1761010933444,0.00072387,110370.0,110360.0,0.14934758]
[1761010936400,0.39186019,110370.0,110360.0,0.20134758]
[1761010936606,0.57306885,110370.0,110360.0,0.29706508]
[1761010936807,0.57234498,110370.0,110360.0,0.29706508]
[1761010937577,0.57234498,110370.0,110360.0,0.29606508]
[1761010937987,0.57234498,110370.0,110360.0,0.29706508]
[1761010938367,0.57234498,110370.0,110360.0,0.29606508]
[1761010938520,0.57234498,110370.0,110360.0,0.29706508]
[1761010941226,0.39113632,110370.0,110360.0,0.29706508]
[1761010941435,3.39113632,110370.0,110360.0,0.29706508]
[1761010941630,0.39113632,110370.0,110360.0,0.29706508]
[1761010943053,0.57234498,110370.0,110360.0,0.29706508]
[1761010944264,0.57234498,110370.0,110360.0,0.11584]
[1761010944916,0.57234498,110370.0,110360.0,0.29706508]
[1761010947279,0.39113632,110370.0,110360.0,0.29706508]
[1761010947668,0.57498622,110380.0,110360.0,0.29706508]
[1761010947849,0.39113632,110370.0,110360.0,0.29706508]
[1761010948885,0.57498622,110380.0,110360.0,0.29706508]
[1761010949591,0.39113632,110370.0,110360.0,0.29606508]
[1761010949768,0.57498622,110380.0,110360.0,0.29506508]
[1761010950779,0.39086367,110370.0,110360.0,0.29606508]
[1761010951149,0.39086367,110370.0,110360.0,0.29506508]
[1761010953001,0.39086367,110370.0,110360.0,0.29706508]
[1761010958068,0.57207233,110370.0,110360.0,0.29706508]
[1761010959444,0.39086367,110370.0,110360.0,0.29706508]
[1761010967166,0.57207233,110370.0,110360.0,0.29706508]
[1761010968688,0.39086367,110370.0,110360.0,0.29706508]
[1761010969867,0.57207233,110370.0,110360.0,0.29706508]
[1761010973660,0.36659482,110370.0,110360.0,0.29706508]
[1761010975269,0.36659482,110370.0,110360.0,0.11584]
[1761010975464,0.36659482,110370.0,110360.0,0.29706508]
[1761010977795,0.36659482,110370.0,110360.0,0.002]
[1761010979402,0.36659482,110370.0,110360.0,0.18322508]
[1761010980398,0.18120866,110370.0,110360.0,0.18322508]
[1761010980918,0.57207233,110370.0,110360.0,0.18322508]
[1761010984780,3.0,110370.0,110360.0,0.18322508]
[1761010984994,0.39086367,110370.0,110360.0,0.18322508]
[1761010986976,0.91470145,110380.0,110370.0,0.18120866]
[1761010987685,0.34264554,110380.0,110370.0,0.18120866]
[1761010987862,0.34264554,110380.0,110370.0,0.29500866]
[1761010988626,0.34264554,110380.0,110370.0,0.22700866]
[1761010990573,0.00264554,110380.0,110370.0,0.22700866]
[1761010992636,0.91470145,110380.0,110370.0,0.29500866]
[1761010992836,0.73350921,110380.0,110370.0,0.29500866]
[1761010993733,0.91470145,110380.0,110370.0,0.29500866]
[1761010993941,1.30556512,110380.0,110370.0,0.1138]
[1761010994467,0.91470145,110380.0,110370.0,0.1138]
[1761010994711,1.30556512,110380.0,110370.0,0.29500866]
[1761010994914,0.91470145,110380.0,110370.0,0.29500866]
[1761010995515,0.91470145,110380.0,110370.0,0.1138]
[1761010995725,1.30556512,110380.0,110370.0,0.1138]
[1761010996134,1.30556512,110380.0,110370.0,0.29500866]
[1761010996498,1.30556512,110380.0,110370.0,0.1138]
[1761010996942,1.30556512,110380.0,110370.0,0.18120866]
[1761010997304,0.91470145,110380.0,110370.0,0.18120866]
[1761010999501,0.91470145,110380.0,110360.0,0.29502508]
[1761010999628,0.39086367,110370.0,110360.0,0.29502508]
[1761010999822,0.57207233,110370.0,110360.0,0.18122508]
[1761011000045,0.57207233,110370.0,110360.0,0.29502508]
[1761011000439,0.57207233,110370.0,110360.0,0.1138]
[1761011000672,0.57207233,110370.0,110350.0,0.22621715]
[1761011001477,0.57207233,110370.0,110360.0,0.18322508]
[1761011001800,0.57207233,110370.0,110360.0,0.18222508]
[1761011002011,0.57207233,110370.0,110360.0,0.18122508]
[1761011002581,0.57207233,110370.0,110360.0,0.18222508]
[1761011003208,0.57207233,110370.0,110360.0,0.001]
[1761011003621,0.18120866,110370.0,110360.0,0.001]
[1761011003800,0.57207233,110370.0,110360.0,0.001]
[1761011004240,0.57207233,110370.0,110360.0,0.002]
[1761011005360,0.18120866,110370.0,110360.0,0.002]
[1761011005536,0.57207233,110370.0,110360.0,0.002]
[1761011005941,0.18120866,110370.0,110360.0,0.002]
[1761011006143,0.57207233,110370.0,110360.0,0.002]
[1761011006741,0.57207233,110370.0,110360.0,0.18322508]
[1761011007353,0.18120866,110370.0,110360.0,0.18322508]
[1761011007559,0.57207233,110370.0,110360.0,0.18322508]
[1761011008251,0.57207233,110370.0,110360.0,0.002]
[1761011008450,4.79135738,110370.0,110360.0,0.002]
[1761011008651,4.95357766,110370.0,110360.0,0.002]
[1761011008866,4.75595299,110370.0,110360.0,0.002]
[1761011009002,0.52125793,110340.0,110330.0,0.35598926]
[1761011009201,1.41759688,110340.0,110330.0,0.35598926]
[1761011009863,1.53467784,110340.0,110330.0,0.35598926]
[1761011010079,1.44485883,110340.0,110330.0,0.35598926]
[1761011011431,1.4464384,110340.0,110330.0,0.35598926]
[1761011012926,1.05587846,110340.0,110330.0,0.35598926]
[1761011014734,0.71587846,110340.0,110330.0,0.35667486]
[1761011014937,0.71587846,110340.0,110330.0,0.53794921]
[1761011015140,0.53466053,110340.0,110330.0,0.53794921]
[1761011015267,0.00207118,110340.0,110330.0,0.53794921]
[1761011015473,0.00207118,110340.0,110330.0,0.65210921]
[1761011016524,0.00207118,110340.0,110330.0,1.04327661]
[1761011017610,0.00207118,110340.0,110330.0,1.04427661]
[1761011017809,0.00049161,110340.0,110330.0,1.04427661]
[1761011018457,0.00049161,110340.0,110330.0,0.65310921]
[1761011019496,0.00049161,110340.0,110330.0,0.68036559]
[1761011023836,0.00049161,110340.0,110330.0,1.07153299]
[1761011024039,0.00049161,110340.0,110330.0,1.04427661]
[1761011027116,0.00049161,110340.0,110330.0,0.65310921]
[1761011044066,0.57240931,110350.0,110340.0,0.18125793]
[1761011044298,0.57240931,110350.0,110340.0,0.18140564]
[1761011044886,0.5724089,110350.0,110340.0,0.00014771]
[1761011046141,0.6864489,110350.0,110340.0,0.00014771]
[1761011047778,3.6864489,110350.0,110340.0,0.00014771]
[1761011049357,3.6864489,110350.0,110340.0,0.00049048]
[1761011049565,3.74424107,110350.0,110340.0,0.00049048]
[1761011049984,3.6864489,110350.0,110340.0,0.00049048]
[1761011051596,3.6864489,110350.0,110340.0,0.18174841]
[1761011052019,0.6864489,110350.0,110340.0,0.00049048]
[1761011056957,0.6864489,110350.0,110330.0,0.53075242]
[1761011057163,0.3911674,110340.0,110330.0,0.53080159]
[1761011057366,0.6864489,110350.0,110330.0,0.53080159]
[1761011058088,0.18125793,110340.0,110330.0,0.53080159]
[1761011058479,0.57242533,110340.0,110330.0,0.34952891]
[1761011058681,0.57242533,110340.0,110330.0,0.53080326]
[1761011060934,0.18125793,110340.0,110330.0,0.53080326]
[1761011062640,0.18125793,110340.0,110330.0,0.53114608]
[1761011063586,0.57242533,110340.0,110330.0,0.53114608]
[1761011067904,0.57242533,110340.0,110330.0,0.34987173]
[1761011068286,0.57242533,110340.0,110330.0,0.53114608]
[1761011068756,0.57242533,110340.0,110330.0,0.34987173]
[1761011070723,0.57400485,110340.0,110330.0,0.34987173]
[1761011074853,0.57393324,110340.0,110330.0,0.34987173]
[1761011075831,3.57393324,110340.0,110330.0,0.34987173]
[1761011076429,3.57235372,110340.0,110330.0,0.34987173]
[1761011078316,3.57222802,110340.0,110330.0,0.34987173]
[1761011081151,3.57380756,110340.0,110330.0,0.34987173]
[1761011082565,0.57380756,110340.0,110330.0,0.34987173]
[1761011083607,3.57380756,110340.0,110330.0,0.34987173]
[1761011084814,3.60106788,110340.0,110330.0,0.34987173]
[1761011087385,0.60106788,110340.0,110330.0,0.34987173]
[1761011098392,0.02726032,110340.0,110330.0,0.34987173]
[1761011098766,0.59961404,110340.0,110330.0,0.34987173]
[1761011100431,0.20851825,110340.0,110330.0,0.53114608]
[1761011100635,0.59961404,110340.0,110330.0,0.53114608]
[1761011101758,0.57391684,110350.0,110330.0,0.53114608]
[1761011101964,0.68779684,110350.0,110330.0,0.53114608]
[1761011102174,0.60117634,110350.0,110330.0,0.53114608]
[1761011103060,0.36883905,110350.0,110340.0,0.18125793]
[1761011103267,0.73267534,110350.0,110340.0,0.18125793]
[1761011103474,0.34157955,110350.0,110340.0,0.18125793]
[1761011103683,0.00157955,110350.0,110340.0,0.29513793]
[1761011103887,0.00157955,110350.0,110340.0,0.57235372]
[1761011104106,0.00157955,110350.0,110340.0,0.25439302]
[1761011104307,0.5733902,110360.0,110350.0,0.1812415]
[1761011105402,0.5733902,110360.0,110340.0,0.25439302]
[1761011105639,0.39109579,110350.0,110340.0,0.25439302]
[1761011108763,0.5733902,110360.0,110340.0,0.25439302]
[1761011108976,0.39109579,110350.0,110340.0,0.25439302]
[1761011111228,0.39109579,110350.0,110340.0,0.18639302]
[1761011114889,0.1838738,110360.0,110350.0,0.1812415]
[1761011115113,0.96606538,110360.0,110350.0,0.1812415]
[1761011115524,0.00264608,110360.0,110350.0,0.7760363]
[1761011115732,0.00106669,110360.0,110350.0,0.38494051]
[1761011115942,0.00106669,110360.0,110350.0,0.41218969]
[1761011116134,0.00106669,110360.0,110350.0,0.80328548]
[1761011117228,0.00106669,110360.0,110350.0,0.41218969]
[1761011117462,0.00106669,110360.0,110350.0,0.80428548]
[1761011118139,0.00106669,110360.0,110350.0,0.41318969]
[1761011118318,0.00106669,110360.0,110350.0,0.80428548]
[1761011121276,0.00106669,110360.0,110350.0,1.24156354]
[1761011121277,1e-08,110360.0,110350.0,1.24156354]
[1761011121959,1e-08,110360.0,110350.0,1.25990947]
[1761011122161,1e-08,110360.0,110350.0,1.25890947]
[1761011122915,1e-08,110360.0,110350.0,1.26090947]
[1761011125047,1e-08,110360.0,110350.0,1.65200526]
[1761011125239,1e-08,110360.0,110350.0,1.99200526]
[1761011125441,1e-08,110360.0,110350.0,2.00200525]
[1761011125802,1e-08,110360.0,110350.0,1.61090946]
[1761011128662,1e-08,110360.0,110350.0,2.00200525]
[1761011130887,0.001579,110400.0,110390.0,0.18117583]
[1761011131087,3.57219156,110440.0,110410.0,0.18114301]
[1761011131286,0.39267444,110430.0,110420.0,0.19923926]
[1761011131492,0.39267444,110430.0,110420.0,0.1811266]
[1761011131696,0.73109579,110440.0,110430.0,0.1811102]
[1761011132004,0.73114499,110440.0,110430.0,0.1811102]
[1761011132206,0.52446466,110440.0,110430.0,0.1811102]
[1761011132417,0.52446466,110440.0,110430.0,0.20834693]
[1761011132601,0.70555846,110440.0,110430.0,0.20834693]
[1761011133211,0.70555846,110440.0,110430.0,0.18534693]
[1761011134032,0.70713706,110440.0,110430.0,0.18534693]
[1761011134458,0.70813706,110440.0,110430.0,0.18534693]
[1761011134613,0.70813706,110440.0,110430.0,0.02723673]
[1761011135466,1.09923285,110440.0,110430.0,0.02723673]
[1761011135755,4.09923285,110440.0,110430.0,0.02723673]
[1761011135992,0.18111517,110430.0,110410.0,0.30423308]
[1761011136196,0.39109579,110420.0,110410.0,0.30423308]
[1761011136633,0.00205493,110420.0,110410.0,0.30423308]
[1761011136812,0.00205493,110420.0,110410.0,0.33147127]
[1761011138076,0.00205493,110420.0,110410.0,0.84796539]
[1761011140160,0.00205493,110420.0,110410.0,0.20937412]
[1761011140410,0.00205493,110420.0,110410.0,0.31845412]
[1761011140833,0.00205493,110420.0,110410.0,0.70994695]
[1761011141240,0.00205493,110420.0,110410.0,0.70894695]
[1761011141445,0.00205493,110420.0,110410.0,0.70794695]
[1761011142050,0.00205493,110420.0,110410.0,0.31745412]
[1761011145117,0.00205493,110420.0,110410.0,0.29021593]
[1761011145330,0.00205493,110420.0,110410.0,0.29017593]
[1761011146756,0.00205493,110420.0,110410.0,0.68066876]
[1761011148071,0.00205493,110420.0,110410.0,0.68166876]